{"text_format":"3","workbook":"xlsx","n_sheets":12,"sheets":["Instructions","Paris_Company_Performance ","Tokyo_Company_Performance","Inspections_Database","Fleet_List","Data_Validation","Insp&Def Chart Table","Montly_Performance (Tokyo)","Montly_Performance","Analysis of Inspections","Analysis of Deficiencies","ChartTable"],"not_rendered":{"charts":8,"images":31,"macros":1,"defined_names":5,"comments":1},"unopened":[{"sheet":"Montly_Performance (Tokyo)","index":7,"reason":"not_a_worksheet"},{"sheet":"Montly_Performance","index":8,"reason":"not_a_worksheet"},{"sheet":"Analysis of Inspections","index":9,"reason":"not_a_worksheet"},{"sheet":"Analysis of Deficiencies","index":10,"reason":"not_a_worksheet"}],"read":"whole","date_system":"1900"}

{"sheet":"Instructions","index":0,"n_rows":82,"n_cols":14,"rows_kept":82,"merged":[[14,2,14,15],[16,2,16,15],[18,2,18,15],[21,0,21,18],[57,1,57,3],[57,5,57,7],[57,9,57,11],[57,13,57,15],[58,1,58,3],[58,5,58,7],[58,9,58,11],[58,13,58,15],[59,1,59,3],[59,5,59,7],[59,9,59,11],[59,13,59,15],[62,1,62,3],[62,4,62,7],[62,9,62,11],[62,12,62,15],[63,1,63,3],[63,4,63,7],[63,9,63,11],[63,12,63,15],[64,1,64,3],[64,4,64,7],[64,9,64,11],[64,12,64,15],[67,0,67,18],[78,0,78,4],[80,0,80,17],[81,0,83,17]]}
[]
[]
[]
[]
["How does the Company Performance Calculator Works?"]
[]
["The calculations use only data for the last 36 months. Data from inspections carried out prior to 36 months from today will not be taken into account for the calculations or charts."]
[]
["In order for the calculation to work, the following information must be entered:"]
[]
[null,"* In the 'Fleet List' tab  the name and IMO number of each vessel in the company's fleet must be entered. Additional information can be entered if required by the user."]
[]
[null,"* In the 'Inspection Database' tab all fields must be completed. If they are not completed the performance calculation will not be correct."]
[]
[null,null,"The MOU column lists all MOU's, but as this is only a Paris and Tokyo MOU performance calculator, it will only use the data for  Inspections carried out in the Paris and Tokyo MOU areas.  No other MOU inspections will be taken into account in the calculation."]
[]
[null,null,"The ISM Deficiency column is limited to only one (1) deficiency for Paris MOU and Tokyo MOU inspections. If more than one (1) ISM deficiency is entered it will show an error. For other MOU's more than one (1) deficiency can be entered."]
[]
[null,null,"If a record needs to be deleted from the inspection database, select the cell that contains the vessel name and press the 'Delete' key on your keyboard. This will show a message asking if you are sure you wish the record to be deleted. Selecting \"Yes\" will delete the entire Row."]
[]
["No information is required to be entered on the 'Paris Company Performance' and 'Tokyo Company Performance' tabs as all data will be obtained from the 'Inspection Database' tab. "]
["Click on the 'Refresh Data' button to calculate the Company Performance in each of the MOU's tabs.  This will  automatically populate all the sections in the \"Company Performance\" tabs with the information entered in the Inspections Database, as shown below."]
{"$rows_empty":9}
[{"$nulls":12},"Not Applicable on the Tokyo Company Performance."]
[]
[]
["and the Detention and Deficiency Ratios and Detention and Deficiency Indexes will appear automatically."]
{"$rows_empty":8}
["The Company Performance result will be highlighted with a Blue Pin in the coloured table as shown below:"]
{"$rows_empty":12}
[null,"Paris MOU Detention ratio explanation:",{"$nulls":7},"Paris MOU Deficiency ratio explanation:"]
[null,"<3.5%",null,null,"=","Below Average",{"$nulls":3},"<1.9",null,null,"=","Below Average"]
[null,"Between 3.5% and 7.5%",null,null,"=","Average",{"$nulls":3},"Between 1.9 and 5.0",null,null,"=","Average"]
[null,">7.5%",null,null,"=","Above average",{"$nulls":3},">5.0",null,null,"=","Above average"]
[]
[null,"Tokyo MOU Detention ration explanation:",{"$nulls":7},"Tokyo MOU Deficiency ration explanation:"]
[null,"Above average",null,null,"> 1 %  above Tokyo MOU average",{"$nulls":4},"Above average",null,null,"> 1  above Tokyo MOU average"]
[null,"Average",null,null,"Tokyo MOU average +/- 1%",{"$nulls":4},"Average",null,null,"Tokyo MOU average +/- 1%"]
[null,"Below Average",null,null,"> 1 % below Tokyo MOU average",{"$nulls":4},"Below Average",null,null,"> 1  below Tokyo MOU average"]
[]
[]
["These steps can be repeated as many times as the user wishes. If a new inspection has been entered, clicking the 'Refresh Data' Button will re-calculate the Company Performance including the new records."]
[]
["Three Charts are available in order to give a better indication of Company Performance:"]
[]
[null,"1) Company Monthly Performance Chart - visible by clicking  'Performance Chart' button in 'Paris Company Performance' and Tokyo Company Performance' tabs."]
[]
[]
[]
[null,"2) Analysis of Inspections - shows the Inspections and detentions per vessel. (Only for Paris & Tokyo MOU's)"]
[null,"3) Analysis of Deficiencies - shows the ISM and non-ISM deficiencies raised per vessel. (Only for Paris & Tokyo MOU's)"]
[]
["If you have any queries please contact us via email:",{"$nulls":4},"tss-class@lr.org"]
[]
["Lloyd’s Register and variants of it are trading names of Lloyd’s Register Group Limited, its subsidiaries and affiliates. Lloyd’s Register Group Limited (Reg. no. 08126909) is a limited company registered in England and Wales. Registered office: 71 Fenchurch Street, London, EC3M 4BS, UK.  A member of the Lloyd’s Register group."]
["Lloyd's Register Group Limited, its affiliates and subsidiaries and their respective officers, employees or agents are, individually and collectively, referred to in this clause as 'Lloyd's Register'. Lloyd's Register assumes no responsibility and shall not be liable to any person for any loss, damage or expense caused by reliance on the information or advice in this document or howsoever provided, unless that person has signed a contract with the relevant Lloyd's Register entity for the provision of this information or advice and in that case any responsibility or liability is exclusively on the terms and conditions set out in that contract."]

{"sheet":"Paris_Company_Performance ","index":1,"n_rows":49,"n_cols":16,"rows_kept":49,"merged":[[0,2,5,14],[16,12,16,14],[17,12,17,14],[18,12,18,14],[18,15,21,15],[19,12,19,14],[20,12,20,14],[21,12,21,14],[22,12,22,14],[22,15,24,15],[23,12,23,14],[24,12,24,14],[25,12,25,14],[32,0,32,2],[32,3,32,6],[32,7,32,9],[32,10,32,11],[32,12,32,14],[32,15,32,16],[36,1,36,7],[36,11,36,15],[37,11,37,15],[40,0,41,15],[47,0,47,17],[48,0,50,17]]}
[null,null,"Paris MoU Company Performance Calculator "]
[]
[]
[]
[]
[]
[]
["The Company Performance Calculator evaluates the performance of the companies referred in the European Union Directive 2009/16/EC on Port State Control Annex 1, Part 1 "]
[]
["This Calculator is only a tool to help users and is without prejudice to Directive 2009/16/EC. Therefore, it cannot have legal effects."]
[]
[]
[]
[null,null,"Company Inspection history from the last 36 months:",{"$nulls":8},"Company Performance"]
[]
[]
[{"$nulls":8},"How many PSC Inspections has the total fleet undergone in the Paris MoU Region in the last 36 months?",null,null,"Detention Index","Deficiency Index",null,null,"Company Performance"]
[{"$nulls":11},"Above Average","Above Average",null,null,"Very Low"]
[{"$nulls":8},"How many of these inspections have resulted in detentions?",null,null,"Above Average","Average",null,null,"Low"]
[{"$nulls":11},"Above Average","Below Average"]
[{"$nulls":8},"How many Non ISM deficiencies have been recorded during these inspections?",null,null,"Average","Above Average"]
[{"$nulls":11},"Below Average","Above Average"]
[{"$nulls":8},"How many ISM deficiencies have been recorded during these inspections?",null,null,"Average","Average",null,null,"Medium"]
[{"$nulls":11},"Average","Below Average"]
[{"$nulls":8},"Has a refusal of access order (banning order) been issued to any ship of the fleet?",null,null,"Below Average","Average"]
[{"$nulls":11},"Below Average","Below Average",null,null,"High"]
[]
[null,null,"Company Detention Index",{"$nulls":8},"Company Deficiency Index"]
[]
["Paris MoU Average Detention Ratio (2)   =",{"$nulls":3},3.53,"% (Detentions per inspections)",{"$nulls":4},"Paris MoU Average Deficiency Ratio (2)   = ",null,null,3.06,"% (Points per Inspections)"]
[]
[]
[]
[]
[{"$nulls":3},"Company Average Detention Ratio(2) =   _                     ",null,"% (Detention per inspection)",{"$nulls":6},"Company Average Deficiency Ratio (2) = ",null," % (points per inspection)"]
[]
[]
[]
[]
["(1)   If a refusal of access order (banning order) has been issued, the Detention Index will be  Above Average regardless of the value of the Detention Ratio"]
["(2)   Average Ratios are calculated using the total number of deficiencies (ISM and Non ISM), the total number of inspections and the total number of detentions in the Paris MOU region in the last 36 months. "]
[]
["(3)  Deficiencies marked as Accidental Damage are not taken into account for the calculation of the Company Performance"]
[]
[]
[]
[]
["Lloyd’s Register and variants of it are trading names of Lloyd’s Register Group Limited, its subsidiaries and affiliates. Lloyd’s Register Group Limited (Reg. no. 08126909) is a limited company registered in England and Wales. Registered office: 71 Fenchurch Street, London, EC3M 4BS, UK.  A member of the Lloyd’s Register group."]
["Lloyd's Register Group Limited, its affiliates and subsidiaries and their respective officers, employees or agents are, individually and collectively, referred to in this clause as 'Lloyd's Register'. Lloyd's Register assumes no responsibility and shall not be liable to any person for any loss, damage or expense caused by reliance on the information or advice in this document or howsoever provided, unless that person has signed a contract with the relevant Lloyd's Register entity for the provision of this information or advice and in that case any responsibility or liability is exclusively on the terms and conditions set out in that contract."]

{"sheet":"Tokyo_Company_Performance","index":2,"n_rows":49,"n_cols":16,"rows_kept":49,"merged":[[0,2,5,14],[16,12,16,14],[17,12,17,14],[18,12,18,14],[18,15,21,15],[19,12,19,14],[20,12,20,14],[21,12,21,14],[22,12,22,14],[22,15,24,15],[23,12,23,14],[24,12,24,14],[25,12,25,14],[32,0,32,2],[32,3,32,6],[32,7,32,9],[32,10,32,11],[32,12,32,14],[32,15,32,16],[36,1,36,7],[36,11,36,15],[37,11,37,15],[39,0,39,15],[47,0,47,17],[48,0,50,17]]}
[null,null,"Tokyo MoU Company Performance Calculator "]
{"$rows_empty":8}
["This Calculator is only a tool to help users and is without prejudice to Directive 2009/16/EC."]
[]
[]
[]
[null,null,"Company Inspection history from the last 36 months:",{"$nulls":8},"Company Performance"]
[]
[]
[{"$nulls":11},"Detention Index","Deficiency Index",null,null,"Company Performance"]
[{"$nulls":8},"How many PSC Inspections has the total fleet undergone in the Tokyo MoU Region in the last 36 months?",null,null,"Above Average","Above Average",null,null,"Very Low"]
[{"$nulls":11},"Above Average","Average",null,null,"Low"]
[{"$nulls":8},"How many of these inspections have resulted in detentions?",null,null,"Above Average","Below Average"]
[{"$nulls":11},"Average","Above Average"]
[{"$nulls":8},"How many Non ISM deficiencies have been recorded during these inspections?",null,null,"Below Average","Above Average"]
[{"$nulls":11},"Average","Average",null,null,"Medium"]
[{"$nulls":8},"How many ISM deficiencies have been recorded during these inspections?",null,null,"Average","Below Average"]
[{"$nulls":11},"Below Average","Average"]
[{"$nulls":11},"Below Average","Below Average",null,null,"High"]
[]
[null,null,"Company Detention Index",{"$nulls":8},"Company Deficiency Index"]
[]
["Tokyo MoU Average Detention Ratio (2)   =",{"$nulls":3},{"$f":"Data_Validation!G6","v":3.69},"%",{"$nulls":4},"Tokyo MoU Average Deficiency Ratio (2)   = ",null,null,{"$f":"Data_Validation!H6","v":3.07}]
[]
[]
[]
[]
[{"$nulls":3},"Company Average Detention Ratio(2) =   _                     ",null,"% (Detention per inspection)",{"$nulls":6},"Company Average Deficiency Ratio (2) = ",null," (points per inspection)"]
[]
[]
[]
[]
["(1)   Average Ratios are calculated using the total number of deficiencies (ISM and Non ISM), the total number of inspections and the total number of detentions in the Tokyo MOU region in the last 36 months. "]
[]
["(2)  Deficiencies marked as Accidental Damage are not taken into account for the calculation of the Company Performance"]
[]
[]
[]
[]
[]
["Lloyd’s Register and variants of it are trading names of Lloyd’s Register Group Limited, its subsidiaries and affiliates. Lloyd’s Register Group Limited (Reg. no. 08126909) is a limited company registered in England and Wales. Registered office: 71 Fenchurch Street, London, EC3M 4BS, UK.  A member of the Lloyd’s Register group."]
["Lloyd's Register Group Limited, its affiliates and subsidiaries and their respective officers, employees or agents are, individually and collectively, referred to in this clause as 'Lloyd's Register'. Lloyd's Register assumes no responsibility and shall not be liable to any person for any loss, damage or expense caused by reliance on the information or advice in this document or howsoever provided, unless that person has signed a contract with the relevant Lloyd's Register entity for the provision of this information or advice and in that case any responsibility or liability is exclusively on the terms and conditions set out in that contract."]

{"sheet":"Inspections_Database","index":3,"n_rows":1,"n_cols":10,"rows_kept":1}
["Ship Name","IMO Number","Port of Inspection","MOU","Date of Inspection","N° of Non ISM deficiencies","N° of ISM Deficiencies","Vessel Detained? Yes/No","Refusal of Access Issued? Yes/No","Comments"]

{"sheet":"Fleet_List","index":4,"n_rows":1,"n_cols":2,"rows_kept":1}
["Ship Name","IMO Number"]

{"sheet":"Data_Validation","index":5,"n_rows":64,"n_cols":9,"rows_kept":64,"hidden":true}
["Abuja MOU","Ship Name","Paris NonISM Def Count","Paris ISM Def Count","Tokyo NonISM Def Count","Tokyo ISM Def Count","Paris PSC Detention Ratio","Paris PSC Deficiency Ratio","Date"]
["Black Sea MOU",null,{"$f":"IF(AND(Inspections_Database!E2>='Insp&Def Chart Table'!$J$2,Inspections_Database!D2=\"Paris MOU\"),Inspections_Database!F2,0)","v":0},{"$f":"IF(AND(Inspections_Database!E2>='Insp&Def Chart Table'!$J$2,Inspections_Database!D2=\"Paris MOU\"),Inspections_Database!G2,0)","v":0},{"$f":"IF(AND(Inspections_Database!E2>='Insp&Def Chart Table'!$J$2,Inspections_Database!D2=\"Tokyo MOU\"),Inspections_Database!F2,0)","v":0},{"$f":"IF(AND(Inspections_Database!E2>='Insp&Def Chart Table'!$J$2,Inspections_Database!D2=\"Tokyo MOU\"),Inspections_Database!G2,0)","v":0},3.67,3.06,"2017-01-07"]
["Caribbean MOU",null,{"$f":"IF(AND(Inspections_Database!E3>='Insp&Def Chart Table'!$J$2,Inspections_Database!D3=\"Paris MOU\"),Inspections_Database!F3,0)","v":0},{"$f":"IF(AND(Inspections_Database!E3>='Insp&Def Chart Table'!$J$2,Inspections_Database!D3=\"Paris MOU\"),Inspections_Database!G3,0)","v":0},{"$f":"IF(AND(Inspections_Database!E3>='Insp&Def Chart Table'!$J$2,Inspections_Database!D3=\"Tokyo MOU\"),Inspections_Database!F3,0)","v":0},{"$f":"IF(AND(Inspections_Database!E3>='Insp&Def Chart Table'!$J$2,Inspections_Database!D3=\"Tokyo MOU\"),Inspections_Database!G3,0)","v":0}]
["Indian Ocean MOU",null,{"$f":"IF(AND(Inspections_Database!E4>='Insp&Def Chart Table'!$J$2,Inspections_Database!D4=\"Paris MOU\"),Inspections_Database!F4,0)","v":0},{"$f":"IF(AND(Inspections_Database!E4>='Insp&Def Chart Table'!$J$2,Inspections_Database!D4=\"Paris MOU\"),Inspections_Database!G4,0)","v":0},{"$f":"IF(AND(Inspections_Database!E4>='Insp&Def Chart Table'!$J$2,Inspections_Database!D4=\"Tokyo MOU\"),Inspections_Database!F4,0)","v":0},{"$f":"IF(AND(Inspections_Database!E4>='Insp&Def Chart Table'!$J$2,Inspections_Database!D4=\"Tokyo MOU\"),Inspections_Database!G4,0)","v":0},"Tokyo PSC Detention Ratio","Tokyo PSC Deficiency Ratio"]
["Mediterranean MOU",null,{"$f":"IF(AND(Inspections_Database!E5>='Insp&Def Chart Table'!$J$2,Inspections_Database!D5=\"Paris MOU\"),Inspections_Database!F5,0)","v":0},{"$f":"IF(AND(Inspections_Database!E5>='Insp&Def Chart Table'!$J$2,Inspections_Database!D5=\"Paris MOU\"),Inspections_Database!G5,0)","v":0},{"$f":"IF(AND(Inspections_Database!E5>='Insp&Def Chart Table'!$J$2,Inspections_Database!D5=\"Tokyo MOU\"),Inspections_Database!F5,0)","v":0},{"$f":"IF(AND(Inspections_Database!E5>='Insp&Def Chart Table'!$J$2,Inspections_Database!D5=\"Tokyo MOU\"),Inspections_Database!G5,0)","v":0},"Detention Index: 3.69%","Deficiency Index: 3.07"]
["Paris MOU",null,{"$f":"IF(AND(Inspections_Database!E6>='Insp&Def Chart Table'!$J$2,Inspections_Database!D6=\"Paris MOU\"),Inspections_Database!F6,0)","v":0},{"$f":"IF(AND(Inspections_Database!E6>='Insp&Def Chart Table'!$J$2,Inspections_Database!D6=\"Paris MOU\"),Inspections_Database!G6,0)","v":0},{"$f":"IF(AND(Inspections_Database!E6>='Insp&Def Chart Table'!$J$2,Inspections_Database!D6=\"Tokyo MOU\"),Inspections_Database!F6,0)","v":0},{"$f":"IF(AND(Inspections_Database!E6>='Insp&Def Chart Table'!$J$2,Inspections_Database!D6=\"Tokyo MOU\"),Inspections_Database!G6,0)","v":0},{"$f":"ExtractNumber(G5,TRUE)","v":3.69},{"$f":"ExtractNumber(H5,TRUE)","v":3.07},"2018-01-07"]
["Riyadh MOU",null,{"$f":"IF(AND(Inspections_Database!E7>='Insp&Def Chart Table'!$J$2,Inspections_Database!D7=\"Paris MOU\"),Inspections_Database!F7,0)","v":0},{"$f":"IF(AND(Inspections_Database!E7>='Insp&Def Chart Table'!$J$2,Inspections_Database!D7=\"Paris MOU\"),Inspections_Database!G7,0)","v":0},{"$f":"IF(AND(Inspections_Database!E7>='Insp&Def Chart Table'!$J$2,Inspections_Database!D7=\"Tokyo MOU\"),Inspections_Database!F7,0)","v":0},{"$f":"IF(AND(Inspections_Database!E7>='Insp&Def Chart Table'!$J$2,Inspections_Database!D7=\"Tokyo MOU\"),Inspections_Database!G7,0)","v":0}]
["Tokyo MOU",null,{"$f":"IF(AND(Inspections_Database!E8>='Insp&Def Chart Table'!$J$2,Inspections_Database!D8=\"Paris MOU\"),Inspections_Database!F8,0)","v":0},{"$f":"IF(AND(Inspections_Database!E8>='Insp&Def Chart Table'!$J$2,Inspections_Database!D8=\"Paris MOU\"),Inspections_Database!G8,0)","v":0},{"$f":"IF(AND(Inspections_Database!E8>='Insp&Def Chart Table'!$J$2,Inspections_Database!D8=\"Tokyo MOU\"),Inspections_Database!F8,0)","v":0},{"$f":"IF(AND(Inspections_Database!E8>='Insp&Def Chart Table'!$J$2,Inspections_Database!D8=\"Tokyo MOU\"),Inspections_Database!G8,0)","v":0}]
["US Coast Guard",null,{"$f":"IF(AND(Inspections_Database!E9>='Insp&Def Chart Table'!$J$2,Inspections_Database!D9=\"Paris MOU\"),Inspections_Database!F9,0)","v":0},{"$f":"IF(AND(Inspections_Database!E9>='Insp&Def Chart Table'!$J$2,Inspections_Database!D9=\"Paris MOU\"),Inspections_Database!G9,0)","v":0},{"$f":"IF(AND(Inspections_Database!E9>='Insp&Def Chart Table'!$J$2,Inspections_Database!D9=\"Tokyo MOU\"),Inspections_Database!F9,0)","v":0},{"$f":"IF(AND(Inspections_Database!E9>='Insp&Def Chart Table'!$J$2,Inspections_Database!D9=\"Tokyo MOU\"),Inspections_Database!G9,0)","v":0}]
["Vina del Mar MOU",null,{"$f":"IF(AND(Inspections_Database!E10>='Insp&Def Chart Table'!$J$2,Inspections_Database!D10=\"Paris MOU\"),Inspections_Database!F10,0)","v":0},{"$f":"IF(AND(Inspections_Database!E10>='Insp&Def Chart Table'!$J$2,Inspections_Database!D10=\"Paris MOU\"),Inspections_Database!G10,0)","v":0},{"$f":"IF(AND(Inspections_Database!E10>='Insp&Def Chart Table'!$J$2,Inspections_Database!D10=\"Tokyo MOU\"),Inspections_Database!F10,0)","v":0},{"$f":"IF(AND(Inspections_Database!E10>='Insp&Def Chart Table'!$J$2,Inspections_Database!D10=\"Tokyo MOU\"),Inspections_Database!G10,0)","v":0}]
[null,null,{"$f":"IF(AND(Inspections_Database!E11>='Insp&Def Chart Table'!$J$2,Inspections_Database!D11=\"Paris MOU\"),Inspections_Database!F11,0)","v":0},{"$f":"IF(AND(Inspections_Database!E11>='Insp&Def Chart Table'!$J$2,Inspections_Database!D11=\"Paris MOU\"),Inspections_Database!G11,0)","v":0},{"$f":"IF(AND(Inspections_Database!E11>='Insp&Def Chart Table'!$J$2,Inspections_Database!D11=\"Tokyo MOU\"),Inspections_Database!F11,0)","v":0},{"$f":"IF(AND(Inspections_Database!E11>='Insp&Def Chart Table'!$J$2,Inspections_Database!D11=\"Tokyo MOU\"),Inspections_Database!G11,0)","v":0}]
[null,null,{"$f":"IF(AND(Inspections_Database!E12>='Insp&Def Chart Table'!$J$2,Inspections_Database!D12=\"Paris MOU\"),Inspections_Database!F12,0)","v":0},{"$f":"IF(AND(Inspections_Database!E12>='Insp&Def Chart Table'!$J$2,Inspections_Database!D12=\"Paris MOU\"),Inspections_Database!G12,0)","v":0},{"$f":"IF(AND(Inspections_Database!E12>='Insp&Def Chart Table'!$J$2,Inspections_Database!D12=\"Tokyo MOU\"),Inspections_Database!F12,0)","v":0},{"$f":"IF(AND(Inspections_Database!E12>='Insp&Def Chart Table'!$J$2,Inspections_Database!D12=\"Tokyo MOU\"),Inspections_Database!G12,0)","v":0}]
[null,null,{"$f":"IF(AND(Inspections_Database!E13>='Insp&Def Chart Table'!$J$2,Inspections_Database!D13=\"Paris MOU\"),Inspections_Database!F13,0)","v":0},{"$f":"IF(AND(Inspections_Database!E13>='Insp&Def Chart Table'!$J$2,Inspections_Database!D13=\"Paris MOU\"),Inspections_Database!G13,0)","v":0},{"$f":"IF(AND(Inspections_Database!E13>='Insp&Def Chart Table'!$J$2,Inspections_Database!D13=\"Tokyo MOU\"),Inspections_Database!F13,0)","v":0},{"$f":"IF(AND(Inspections_Database!E13>='Insp&Def Chart Table'!$J$2,Inspections_Database!D13=\"Tokyo MOU\"),Inspections_Database!G13,0)","v":0}]
["Yes",null,{"$f":"IF(AND(Inspections_Database!E14>='Insp&Def Chart Table'!$J$2,Inspections_Database!D14=\"Paris MOU\"),Inspections_Database!F14,0)","v":0},{"$f":"IF(AND(Inspections_Database!E14>='Insp&Def Chart Table'!$J$2,Inspections_Database!D14=\"Paris MOU\"),Inspections_Database!G14,0)","v":0},{"$f":"IF(AND(Inspections_Database!E14>='Insp&Def Chart Table'!$J$2,Inspections_Database!D14=\"Tokyo MOU\"),Inspections_Database!F14,0)","v":0},{"$f":"IF(AND(Inspections_Database!E14>='Insp&Def Chart Table'!$J$2,Inspections_Database!D14=\"Tokyo MOU\"),Inspections_Database!G14,0)","v":0}]
["No",null,{"$f":"IF(AND(Inspections_Database!E15>='Insp&Def Chart Table'!$J$2,Inspections_Database!D15=\"Paris MOU\"),Inspections_Database!F15,0)","v":0},{"$f":"IF(AND(Inspections_Database!E15>='Insp&Def Chart Table'!$J$2,Inspections_Database!D15=\"Paris MOU\"),Inspections_Database!G15,0)","v":0},{"$f":"IF(AND(Inspections_Database!E15>='Insp&Def Chart Table'!$J$2,Inspections_Database!D15=\"Tokyo MOU\"),Inspections_Database!F15,0)","v":0},{"$f":"IF(AND(Inspections_Database!E15>='Insp&Def Chart Table'!$J$2,Inspections_Database!D15=\"Tokyo MOU\"),Inspections_Database!G15,0)","v":0}]
[null,null,{"$f":"IF(AND(Inspections_Database!E16>='Insp&Def Chart Table'!$J$2,Inspections_Database!D16=\"Paris MOU\"),Inspections_Database!F16,0)","v":0},{"$f":"IF(AND(Inspections_Database!E16>='Insp&Def Chart Table'!$J$2,Inspections_Database!D16=\"Paris MOU\"),Inspections_Database!G16,0)","v":0},{"$f":"IF(AND(Inspections_Database!E16>='Insp&Def Chart Table'!$J$2,Inspections_Database!D16=\"Tokyo MOU\"),Inspections_Database!F16,0)","v":0},{"$f":"IF(AND(Inspections_Database!E16>='Insp&Def Chart Table'!$J$2,Inspections_Database!D16=\"Tokyo MOU\"),Inspections_Database!G16,0)","v":0}]
[null,null,{"$f":"IF(AND(Inspections_Database!E17>='Insp&Def Chart Table'!$J$2,Inspections_Database!D17=\"Paris MOU\"),Inspections_Database!F17,0)","v":0},{"$f":"IF(AND(Inspections_Database!E17>='Insp&Def Chart Table'!$J$2,Inspections_Database!D17=\"Paris MOU\"),Inspections_Database!G17,0)","v":0},{"$f":"IF(AND(Inspections_Database!E17>='Insp&Def Chart Table'!$J$2,Inspections_Database!D17=\"Tokyo MOU\"),Inspections_Database!F17,0)","v":0},{"$f":"IF(AND(Inspections_Database!E17>='Insp&Def Chart Table'!$J$2,Inspections_Database!D17=\"Tokyo MOU\"),Inspections_Database!G17,0)","v":0}]
[null,null,{"$f":"IF(AND(Inspections_Database!E18>='Insp&Def Chart Table'!$J$2,Inspections_Database!D18=\"Paris MOU\"),Inspections_Database!F18,0)","v":0},{"$f":"IF(AND(Inspections_Database!E18>='Insp&Def Chart Table'!$J$2,Inspections_Database!D18=\"Paris MOU\"),Inspections_Database!G18,0)","v":0},{"$f":"IF(AND(Inspections_Database!E18>='Insp&Def Chart Table'!$J$2,Inspections_Database!D18=\"Tokyo MOU\"),Inspections_Database!F18,0)","v":0},{"$f":"IF(AND(Inspections_Database!E18>='Insp&Def Chart Table'!$J$2,Inspections_Database!D18=\"Tokyo MOU\"),Inspections_Database!G18,0)","v":0}]
[null,null,{"$f":"IF(AND(Inspections_Database!E19>='Insp&Def Chart Table'!$J$2,Inspections_Database!D19=\"Paris MOU\"),Inspections_Database!F19,0)","v":0},{"$f":"IF(AND(Inspections_Database!E19>='Insp&Def Chart Table'!$J$2,Inspections_Database!D19=\"Paris MOU\"),Inspections_Database!G19,0)","v":0},{"$f":"IF(AND(Inspections_Database!E19>='Insp&Def Chart Table'!$J$2,Inspections_Database!D19=\"Tokyo MOU\"),Inspections_Database!F19,0)","v":0},{"$f":"IF(AND(Inspections_Database!E19>='Insp&Def Chart Table'!$J$2,Inspections_Database!D19=\"Tokyo MOU\"),Inspections_Database!G19,0)","v":0}]
[null,null,{"$f":"IF(AND(Inspections_Database!E20>='Insp&Def Chart Table'!$J$2,Inspections_Database!D20=\"Paris MOU\"),Inspections_Database!F20,0)","v":0},{"$f":"IF(AND(Inspections_Database!E20>='Insp&Def Chart Table'!$J$2,Inspections_Database!D20=\"Paris MOU\"),Inspections_Database!G20,0)","v":0},{"$f":"IF(AND(Inspections_Database!E20>='Insp&Def Chart Table'!$J$2,Inspections_Database!D20=\"Tokyo MOU\"),Inspections_Database!F20,0)","v":0},{"$f":"IF(AND(Inspections_Database!E20>='Insp&Def Chart Table'!$J$2,Inspections_Database!D20=\"Tokyo MOU\"),Inspections_Database!G20,0)","v":0}]
[null,null,{"$f":"IF(AND(Inspections_Database!E21>='Insp&Def Chart Table'!$J$2,Inspections_Database!D21=\"Paris MOU\"),Inspections_Database!F21,0)","v":0},{"$f":"IF(AND(Inspections_Database!E21>='Insp&Def Chart Table'!$J$2,Inspections_Database!D21=\"Paris MOU\"),Inspections_Database!G21,0)","v":0},{"$f":"IF(AND(Inspections_Database!E21>='Insp&Def Chart Table'!$J$2,Inspections_Database!D21=\"Tokyo MOU\"),Inspections_Database!F21,0)","v":0},{"$f":"IF(AND(Inspections_Database!E21>='Insp&Def Chart Table'!$J$2,Inspections_Database!D21=\"Tokyo MOU\"),Inspections_Database!G21,0)","v":0}]
[null,null,{"$f":"IF(AND(Inspections_Database!E22>='Insp&Def Chart Table'!$J$2,Inspections_Database!D22=\"Paris MOU\"),Inspections_Database!F22,0)","v":0},{"$f":"IF(AND(Inspections_Database!E22>='Insp&Def Chart Table'!$J$2,Inspections_Database!D22=\"Paris MOU\"),Inspections_Database!G22,0)","v":0},{"$f":"IF(AND(Inspections_Database!E22>='Insp&Def Chart Table'!$J$2,Inspections_Database!D22=\"Tokyo MOU\"),Inspections_Database!F22,0)","v":0},{"$f":"IF(AND(Inspections_Database!E22>='Insp&Def Chart Table'!$J$2,Inspections_Database!D22=\"Tokyo MOU\"),Inspections_Database!G22,0)","v":0}]
[null,null,{"$f":"IF(AND(Inspections_Database!E23>='Insp&Def Chart Table'!$J$2,Inspections_Database!D23=\"Paris MOU\"),Inspections_Database!F23,0)","v":0},{"$f":"IF(AND(Inspections_Database!E23>='Insp&Def Chart Table'!$J$2,Inspections_Database!D23=\"Paris MOU\"),Inspections_Database!G23,0)","v":0},{"$f":"IF(AND(Inspections_Database!E23>='Insp&Def Chart Table'!$J$2,Inspections_Database!D23=\"Tokyo MOU\"),Inspections_Database!F23,0)","v":0},{"$f":"IF(AND(Inspections_Database!E23>='Insp&Def Chart Table'!$J$2,Inspections_Database!D23=\"Tokyo MOU\"),Inspections_Database!G23,0)","v":0}]
[null,null,{"$f":"IF(AND(Inspections_Database!E24>='Insp&Def Chart Table'!$J$2,Inspections_Database!D24=\"Paris MOU\"),Inspections_Database!F24,0)","v":0},{"$f":"IF(AND(Inspections_Database!E24>='Insp&Def Chart Table'!$J$2,Inspections_Database!D24=\"Paris MOU\"),Inspections_Database!G24,0)","v":0},{"$f":"IF(AND(Inspections_Database!E24>='Insp&Def Chart Table'!$J$2,Inspections_Database!D24=\"Tokyo MOU\"),Inspections_Database!F24,0)","v":0},{"$f":"IF(AND(Inspections_Database!E24>='Insp&Def Chart Table'!$J$2,Inspections_Database!D24=\"Tokyo MOU\"),Inspections_Database!G24,0)","v":0}]
[null,null,{"$f":"IF(AND(Inspections_Database!E25>='Insp&Def Chart Table'!$J$2,Inspections_Database!D25=\"Paris MOU\"),Inspections_Database!F25,0)","v":0},{"$f":"IF(AND(Inspections_Database!E25>='Insp&Def Chart Table'!$J$2,Inspections_Database!D25=\"Paris MOU\"),Inspections_Database!G25,0)","v":0},{"$f":"IF(AND(Inspections_Database!E25>='Insp&Def Chart Table'!$J$2,Inspections_Database!D25=\"Tokyo MOU\"),Inspections_Database!F25,0)","v":0},{"$f":"IF(AND(Inspections_Database!E25>='Insp&Def Chart Table'!$J$2,Inspections_Database!D25=\"Tokyo MOU\"),Inspections_Database!G25,0)","v":0}]
[null,null,{"$f":"IF(AND(Inspections_Database!E26>='Insp&Def Chart Table'!$J$2,Inspections_Database!D26=\"Paris MOU\"),Inspections_Database!F26,0)","v":0},{"$f":"IF(AND(Inspections_Database!E26>='Insp&Def Chart Table'!$J$2,Inspections_Database!D26=\"Paris MOU\"),Inspections_Database!G26,0)","v":0},{"$f":"IF(AND(Inspections_Database!E26>='Insp&Def Chart Table'!$J$2,Inspections_Database!D26=\"Tokyo MOU\"),Inspections_Database!F26,0)","v":0},{"$f":"IF(AND(Inspections_Database!E26>='Insp&Def Chart Table'!$J$2,Inspections_Database!D26=\"Tokyo MOU\"),Inspections_Database!G26,0)","v":0}]
[null,null,{"$f":"IF(AND(Inspections_Database!E27>='Insp&Def Chart Table'!$J$2,Inspections_Database!D27=\"Paris MOU\"),Inspections_Database!F27,0)","v":0},{"$f":"IF(AND(Inspections_Database!E27>='Insp&Def Chart Table'!$J$2,Inspections_Database!D27=\"Paris MOU\"),Inspections_Database!G27,0)","v":0},{"$f":"IF(AND(Inspections_Database!E27>='Insp&Def Chart Table'!$J$2,Inspections_Database!D27=\"Tokyo MOU\"),Inspections_Database!F27,0)","v":0},{"$f":"IF(AND(Inspections_Database!E27>='Insp&Def Chart Table'!$J$2,Inspections_Database!D27=\"Tokyo MOU\"),Inspections_Database!G27,0)","v":0}]
[null,null,{"$f":"IF(AND(Inspections_Database!E28>='Insp&Def Chart Table'!$J$2,Inspections_Database!D28=\"Paris MOU\"),Inspections_Database!F28,0)","v":0},{"$f":"IF(AND(Inspections_Database!E28>='Insp&Def Chart Table'!$J$2,Inspections_Database!D28=\"Paris MOU\"),Inspections_Database!G28,0)","v":0},{"$f":"IF(AND(Inspections_Database!E28>='Insp&Def Chart Table'!$J$2,Inspections_Database!D28=\"Tokyo MOU\"),Inspections_Database!F28,0)","v":0},{"$f":"IF(AND(Inspections_Database!E28>='Insp&Def Chart Table'!$J$2,Inspections_Database!D28=\"Tokyo MOU\"),Inspections_Database!G28,0)","v":0}]
[null,null,{"$f":"IF(AND(Inspections_Database!E29>='Insp&Def Chart Table'!$J$2,Inspections_Database!D29=\"Paris MOU\"),Inspections_Database!F29,0)","v":0},{"$f":"IF(AND(Inspections_Database!E29>='Insp&Def Chart Table'!$J$2,Inspections_Database!D29=\"Paris MOU\"),Inspections_Database!G29,0)","v":0},{"$f":"IF(AND(Inspections_Database!E29>='Insp&Def Chart Table'!$J$2,Inspections_Database!D29=\"Tokyo MOU\"),Inspections_Database!F29,0)","v":0},{"$f":"IF(AND(Inspections_Database!E29>='Insp&Def Chart Table'!$J$2,Inspections_Database!D29=\"Tokyo MOU\"),Inspections_Database!G29,0)","v":0}]
[null,null,{"$f":"IF(AND(Inspections_Database!E30>='Insp&Def Chart Table'!$J$2,Inspections_Database!D30=\"Paris MOU\"),Inspections_Database!F30,0)","v":0},{"$f":"IF(AND(Inspections_Database!E30>='Insp&Def Chart Table'!$J$2,Inspections_Database!D30=\"Paris MOU\"),Inspections_Database!G30,0)","v":0},{"$f":"IF(AND(Inspections_Database!E30>='Insp&Def Chart Table'!$J$2,Inspections_Database!D30=\"Tokyo MOU\"),Inspections_Database!F30,0)","v":0},{"$f":"IF(AND(Inspections_Database!E30>='Insp&Def Chart Table'!$J$2,Inspections_Database!D30=\"Tokyo MOU\"),Inspections_Database!G30,0)","v":0}]
[null,null,{"$f":"IF(AND(Inspections_Database!E31>='Insp&Def Chart Table'!$J$2,Inspections_Database!D31=\"Paris MOU\"),Inspections_Database!F31,0)","v":0},{"$f":"IF(AND(Inspections_Database!E31>='Insp&Def Chart Table'!$J$2,Inspections_Database!D31=\"Paris MOU\"),Inspections_Database!G31,0)","v":0},{"$f":"IF(AND(Inspections_Database!E31>='Insp&Def Chart Table'!$J$2,Inspections_Database!D31=\"Tokyo MOU\"),Inspections_Database!F31,0)","v":0},{"$f":"IF(AND(Inspections_Database!E31>='Insp&Def Chart Table'!$J$2,Inspections_Database!D31=\"Tokyo MOU\"),Inspections_Database!G31,0)","v":0}]
[null,null,{"$f":"IF(AND(Inspections_Database!E32>='Insp&Def Chart Table'!$J$2,Inspections_Database!D32=\"Paris MOU\"),Inspections_Database!F32,0)","v":0},{"$f":"IF(AND(Inspections_Database!E32>='Insp&Def Chart Table'!$J$2,Inspections_Database!D32=\"Paris MOU\"),Inspections_Database!G32,0)","v":0},{"$f":"IF(AND(Inspections_Database!E32>='Insp&Def Chart Table'!$J$2,Inspections_Database!D32=\"Tokyo MOU\"),Inspections_Database!F32,0)","v":0},{"$f":"IF(AND(Inspections_Database!E32>='Insp&Def Chart Table'!$J$2,Inspections_Database!D32=\"Tokyo MOU\"),Inspections_Database!G32,0)","v":0}]
[null,null,{"$f":"IF(AND(Inspections_Database!E33>='Insp&Def Chart Table'!$J$2,Inspections_Database!D33=\"Paris MOU\"),Inspections_Database!F33,0)","v":0},{"$f":"IF(AND(Inspections_Database!E33>='Insp&Def Chart Table'!$J$2,Inspections_Database!D33=\"Paris MOU\"),Inspections_Database!G33,0)","v":0},{"$f":"IF(AND(Inspections_Database!E33>='Insp&Def Chart Table'!$J$2,Inspections_Database!D33=\"Tokyo MOU\"),Inspections_Database!F33,0)","v":0},{"$f":"IF(AND(Inspections_Database!E33>='Insp&Def Chart Table'!$J$2,Inspections_Database!D33=\"Tokyo MOU\"),Inspections_Database!G33,0)","v":0}]
[null,null,{"$f":"IF(AND(Inspections_Database!E34>='Insp&Def Chart Table'!$J$2,Inspections_Database!D34=\"Paris MOU\"),Inspections_Database!F34,0)","v":0},{"$f":"IF(AND(Inspections_Database!E34>='Insp&Def Chart Table'!$J$2,Inspections_Database!D34=\"Paris MOU\"),Inspections_Database!G34,0)","v":0},{"$f":"IF(AND(Inspections_Database!E34>='Insp&Def Chart Table'!$J$2,Inspections_Database!D34=\"Tokyo MOU\"),Inspections_Database!F34,0)","v":0},{"$f":"IF(AND(Inspections_Database!E34>='Insp&Def Chart Table'!$J$2,Inspections_Database!D34=\"Tokyo MOU\"),Inspections_Database!G34,0)","v":0}]
[null,null,{"$f":"IF(AND(Inspections_Database!E35>='Insp&Def Chart Table'!$J$2,Inspections_Database!D35=\"Paris MOU\"),Inspections_Database!F35,0)","v":0},{"$f":"IF(AND(Inspections_Database!E35>='Insp&Def Chart Table'!$J$2,Inspections_Database!D35=\"Paris MOU\"),Inspections_Database!G35,0)","v":0},{"$f":"IF(AND(Inspections_Database!E35>='Insp&Def Chart Table'!$J$2,Inspections_Database!D35=\"Tokyo MOU\"),Inspections_Database!F35,0)","v":0},{"$f":"IF(AND(Inspections_Database!E35>='Insp&Def Chart Table'!$J$2,Inspections_Database!D35=\"Tokyo MOU\"),Inspections_Database!G35,0)","v":0}]
[null,null,{"$f":"IF(AND(Inspections_Database!E36>='Insp&Def Chart Table'!$J$2,Inspections_Database!D36=\"Paris MOU\"),Inspections_Database!F36,0)","v":0},{"$f":"IF(AND(Inspections_Database!E36>='Insp&Def Chart Table'!$J$2,Inspections_Database!D36=\"Paris MOU\"),Inspections_Database!G36,0)","v":0},{"$f":"IF(AND(Inspections_Database!E36>='Insp&Def Chart Table'!$J$2,Inspections_Database!D36=\"Tokyo MOU\"),Inspections_Database!F36,0)","v":0},{"$f":"IF(AND(Inspections_Database!E36>='Insp&Def Chart Table'!$J$2,Inspections_Database!D36=\"Tokyo MOU\"),Inspections_Database!G36,0)","v":0}]
[null,null,{"$f":"IF(AND(Inspections_Database!E37>='Insp&Def Chart Table'!$J$2,Inspections_Database!D37=\"Paris MOU\"),Inspections_Database!F37,0)","v":0},{"$f":"IF(AND(Inspections_Database!E37>='Insp&Def Chart Table'!$J$2,Inspections_Database!D37=\"Paris MOU\"),Inspections_Database!G37,0)","v":0},{"$f":"IF(AND(Inspections_Database!E37>='Insp&Def Chart Table'!$J$2,Inspections_Database!D37=\"Tokyo MOU\"),Inspections_Database!F37,0)","v":0},{"$f":"IF(AND(Inspections_Database!E37>='Insp&Def Chart Table'!$J$2,Inspections_Database!D37=\"Tokyo MOU\"),Inspections_Database!G37,0)","v":0}]
[null,null,{"$f":"IF(AND(Inspections_Database!E38>='Insp&Def Chart Table'!$J$2,Inspections_Database!D38=\"Paris MOU\"),Inspections_Database!F38,0)","v":0},{"$f":"IF(AND(Inspections_Database!E38>='Insp&Def Chart Table'!$J$2,Inspections_Database!D38=\"Paris MOU\"),Inspections_Database!G38,0)","v":0},{"$f":"IF(AND(Inspections_Database!E38>='Insp&Def Chart Table'!$J$2,Inspections_Database!D38=\"Tokyo MOU\"),Inspections_Database!F38,0)","v":0},{"$f":"IF(AND(Inspections_Database!E38>='Insp&Def Chart Table'!$J$2,Inspections_Database!D38=\"Tokyo MOU\"),Inspections_Database!G38,0)","v":0}]
[null,null,{"$f":"IF(AND(Inspections_Database!E39>='Insp&Def Chart Table'!$J$2,Inspections_Database!D39=\"Paris MOU\"),Inspections_Database!F39,0)","v":0},{"$f":"IF(AND(Inspections_Database!E39>='Insp&Def Chart Table'!$J$2,Inspections_Database!D39=\"Paris MOU\"),Inspections_Database!G39,0)","v":0},{"$f":"IF(AND(Inspections_Database!E39>='Insp&Def Chart Table'!$J$2,Inspections_Database!D39=\"Tokyo MOU\"),Inspections_Database!F39,0)","v":0},{"$f":"IF(AND(Inspections_Database!E39>='Insp&Def Chart Table'!$J$2,Inspections_Database!D39=\"Tokyo MOU\"),Inspections_Database!G39,0)","v":0}]
[null,null,{"$f":"IF(AND(Inspections_Database!E40>='Insp&Def Chart Table'!$J$2,Inspections_Database!D40=\"Paris MOU\"),Inspections_Database!F40,0)","v":0},{"$f":"IF(AND(Inspections_Database!E40>='Insp&Def Chart Table'!$J$2,Inspections_Database!D40=\"Paris MOU\"),Inspections_Database!G40,0)","v":0},{"$f":"IF(AND(Inspections_Database!E40>='Insp&Def Chart Table'!$J$2,Inspections_Database!D40=\"Tokyo MOU\"),Inspections_Database!F40,0)","v":0},{"$f":"IF(AND(Inspections_Database!E40>='Insp&Def Chart Table'!$J$2,Inspections_Database!D40=\"Tokyo MOU\"),Inspections_Database!G40,0)","v":0}]
[null,null,{"$f":"IF(AND(Inspections_Database!E41>='Insp&Def Chart Table'!$J$2,Inspections_Database!D41=\"Paris MOU\"),Inspections_Database!F41,0)","v":0},{"$f":"IF(AND(Inspections_Database!E41>='Insp&Def Chart Table'!$J$2,Inspections_Database!D41=\"Paris MOU\"),Inspections_Database!G41,0)","v":0},{"$f":"IF(AND(Inspections_Database!E41>='Insp&Def Chart Table'!$J$2,Inspections_Database!D41=\"Tokyo MOU\"),Inspections_Database!F41,0)","v":0},{"$f":"IF(AND(Inspections_Database!E41>='Insp&Def Chart Table'!$J$2,Inspections_Database!D41=\"Tokyo MOU\"),Inspections_Database!G41,0)","v":0}]
[null,null,{"$f":"IF(AND(Inspections_Database!E42>='Insp&Def Chart Table'!$J$2,Inspections_Database!D42=\"Paris MOU\"),Inspections_Database!F42,0)","v":0},{"$f":"IF(AND(Inspections_Database!E42>='Insp&Def Chart Table'!$J$2,Inspections_Database!D42=\"Paris MOU\"),Inspections_Database!G42,0)","v":0},{"$f":"IF(AND(Inspections_Database!E42>='Insp&Def Chart Table'!$J$2,Inspections_Database!D42=\"Tokyo MOU\"),Inspections_Database!F42,0)","v":0},{"$f":"IF(AND(Inspections_Database!E42>='Insp&Def Chart Table'!$J$2,Inspections_Database!D42=\"Tokyo MOU\"),Inspections_Database!G42,0)","v":0}]
[null,null,{"$f":"IF(AND(Inspections_Database!E43>='Insp&Def Chart Table'!$J$2,Inspections_Database!D43=\"Paris MOU\"),Inspections_Database!F43,0)","v":0},{"$f":"IF(AND(Inspections_Database!E43>='Insp&Def Chart Table'!$J$2,Inspections_Database!D43=\"Paris MOU\"),Inspections_Database!G43,0)","v":0},{"$f":"IF(AND(Inspections_Database!E43>='Insp&Def Chart Table'!$J$2,Inspections_Database!D43=\"Tokyo MOU\"),Inspections_Database!F43,0)","v":0},{"$f":"IF(AND(Inspections_Database!E43>='Insp&Def Chart Table'!$J$2,Inspections_Database!D43=\"Tokyo MOU\"),Inspections_Database!G43,0)","v":0}]
[null,null,{"$f":"IF(AND(Inspections_Database!E44>='Insp&Def Chart Table'!$J$2,Inspections_Database!D44=\"Paris MOU\"),Inspections_Database!F44,0)","v":0},{"$f":"IF(AND(Inspections_Database!E44>='Insp&Def Chart Table'!$J$2,Inspections_Database!D44=\"Paris MOU\"),Inspections_Database!G44,0)","v":0},{"$f":"IF(AND(Inspections_Database!E44>='Insp&Def Chart Table'!$J$2,Inspections_Database!D44=\"Tokyo MOU\"),Inspections_Database!F44,0)","v":0},{"$f":"IF(AND(Inspections_Database!E44>='Insp&Def Chart Table'!$J$2,Inspections_Database!D44=\"Tokyo MOU\"),Inspections_Database!G44,0)","v":0}]
[null,null,{"$f":"IF(AND(Inspections_Database!E45>='Insp&Def Chart Table'!$J$2,Inspections_Database!D45=\"Paris MOU\"),Inspections_Database!F45,0)","v":0},{"$f":"IF(AND(Inspections_Database!E45>='Insp&Def Chart Table'!$J$2,Inspections_Database!D45=\"Paris MOU\"),Inspections_Database!G45,0)","v":0},{"$f":"IF(AND(Inspections_Database!E45>='Insp&Def Chart Table'!$J$2,Inspections_Database!D45=\"Tokyo MOU\"),Inspections_Database!F45,0)","v":0},{"$f":"IF(AND(Inspections_Database!E45>='Insp&Def Chart Table'!$J$2,Inspections_Database!D45=\"Tokyo MOU\"),Inspections_Database!G45,0)","v":0}]
[null,null,{"$f":"IF(AND(Inspections_Database!E46>='Insp&Def Chart Table'!$J$2,Inspections_Database!D46=\"Paris MOU\"),Inspections_Database!F46,0)","v":0},{"$f":"IF(AND(Inspections_Database!E46>='Insp&Def Chart Table'!$J$2,Inspections_Database!D46=\"Paris MOU\"),Inspections_Database!G46,0)","v":0},{"$f":"IF(AND(Inspections_Database!E46>='Insp&Def Chart Table'!$J$2,Inspections_Database!D46=\"Tokyo MOU\"),Inspections_Database!F46,0)","v":0},{"$f":"IF(AND(Inspections_Database!E46>='Insp&Def Chart Table'!$J$2,Inspections_Database!D46=\"Tokyo MOU\"),Inspections_Database!G46,0)","v":0}]
[null,null,{"$f":"IF(AND(Inspections_Database!E47>='Insp&Def Chart Table'!$J$2,Inspections_Database!D47=\"Paris MOU\"),Inspections_Database!F47,0)","v":0},{"$f":"IF(AND(Inspections_Database!E47>='Insp&Def Chart Table'!$J$2,Inspections_Database!D47=\"Paris MOU\"),Inspections_Database!G47,0)","v":0},{"$f":"IF(AND(Inspections_Database!E47>='Insp&Def Chart Table'!$J$2,Inspections_Database!D47=\"Tokyo MOU\"),Inspections_Database!F47,0)","v":0},{"$f":"IF(AND(Inspections_Database!E47>='Insp&Def Chart Table'!$J$2,Inspections_Database!D47=\"Tokyo MOU\"),Inspections_Database!G47,0)","v":0}]
[null,null,{"$f":"IF(AND(Inspections_Database!E48>='Insp&Def Chart Table'!$J$2,Inspections_Database!D48=\"Paris MOU\"),Inspections_Database!F48,0)","v":0},{"$f":"IF(AND(Inspections_Database!E48>='Insp&Def Chart Table'!$J$2,Inspections_Database!D48=\"Paris MOU\"),Inspections_Database!G48,0)","v":0},{"$f":"IF(AND(Inspections_Database!E48>='Insp&Def Chart Table'!$J$2,Inspections_Database!D48=\"Tokyo MOU\"),Inspections_Database!F48,0)","v":0},{"$f":"IF(AND(Inspections_Database!E48>='Insp&Def Chart Table'!$J$2,Inspections_Database!D48=\"Tokyo MOU\"),Inspections_Database!G48,0)","v":0}]
[null,null,{"$f":"IF(AND(Inspections_Database!E49>='Insp&Def Chart Table'!$J$2,Inspections_Database!D49=\"Paris MOU\"),Inspections_Database!F49,0)","v":0},{"$f":"IF(AND(Inspections_Database!E49>='Insp&Def Chart Table'!$J$2,Inspections_Database!D49=\"Paris MOU\"),Inspections_Database!G49,0)","v":0},{"$f":"IF(AND(Inspections_Database!E49>='Insp&Def Chart Table'!$J$2,Inspections_Database!D49=\"Tokyo MOU\"),Inspections_Database!F49,0)","v":0},{"$f":"IF(AND(Inspections_Database!E49>='Insp&Def Chart Table'!$J$2,Inspections_Database!D49=\"Tokyo MOU\"),Inspections_Database!G49,0)","v":0}]
[null,null,{"$f":"IF(AND(Inspections_Database!E50>='Insp&Def Chart Table'!$J$2,Inspections_Database!D50=\"Paris MOU\"),Inspections_Database!F50,0)","v":0},{"$f":"IF(AND(Inspections_Database!E50>='Insp&Def Chart Table'!$J$2,Inspections_Database!D50=\"Paris MOU\"),Inspections_Database!G50,0)","v":0},{"$f":"IF(AND(Inspections_Database!E50>='Insp&Def Chart Table'!$J$2,Inspections_Database!D50=\"Tokyo MOU\"),Inspections_Database!F50,0)","v":0},{"$f":"IF(AND(Inspections_Database!E50>='Insp&Def Chart Table'!$J$2,Inspections_Database!D50=\"Tokyo MOU\"),Inspections_Database!G50,0)","v":0}]
[null,null,{"$f":"IF(AND(Inspections_Database!E51>='Insp&Def Chart Table'!$J$2,Inspections_Database!D51=\"Paris MOU\"),Inspections_Database!F51,0)","v":0},{"$f":"IF(AND(Inspections_Database!E51>='Insp&Def Chart Table'!$J$2,Inspections_Database!D51=\"Paris MOU\"),Inspections_Database!G51,0)","v":0},{"$f":"IF(AND(Inspections_Database!E51>='Insp&Def Chart Table'!$J$2,Inspections_Database!D51=\"Tokyo MOU\"),Inspections_Database!F51,0)","v":0},{"$f":"IF(AND(Inspections_Database!E51>='Insp&Def Chart Table'!$J$2,Inspections_Database!D51=\"Tokyo MOU\"),Inspections_Database!G51,0)","v":0}]
[null,null,{"$f":"IF(AND(Inspections_Database!E52>='Insp&Def Chart Table'!$J$2,Inspections_Database!D52=\"Paris MOU\"),Inspections_Database!F52,0)","v":0},{"$f":"IF(AND(Inspections_Database!E52>='Insp&Def Chart Table'!$J$2,Inspections_Database!D52=\"Paris MOU\"),Inspections_Database!G52,0)","v":0},{"$f":"IF(AND(Inspections_Database!E52>='Insp&Def Chart Table'!$J$2,Inspections_Database!D52=\"Tokyo MOU\"),Inspections_Database!F52,0)","v":0},{"$f":"IF(AND(Inspections_Database!E52>='Insp&Def Chart Table'!$J$2,Inspections_Database!D52=\"Tokyo MOU\"),Inspections_Database!G52,0)","v":0}]
[null,null,{"$f":"IF(AND(Inspections_Database!E53>='Insp&Def Chart Table'!$J$2,Inspections_Database!D53=\"Paris MOU\"),Inspections_Database!F53,0)","v":0},{"$f":"IF(AND(Inspections_Database!E53>='Insp&Def Chart Table'!$J$2,Inspections_Database!D53=\"Paris MOU\"),Inspections_Database!G53,0)","v":0},{"$f":"IF(AND(Inspections_Database!E53>='Insp&Def Chart Table'!$J$2,Inspections_Database!D53=\"Tokyo MOU\"),Inspections_Database!F53,0)","v":0},{"$f":"IF(AND(Inspections_Database!E53>='Insp&Def Chart Table'!$J$2,Inspections_Database!D53=\"Tokyo MOU\"),Inspections_Database!G53,0)","v":0}]
[null,null,{"$f":"IF(AND(Inspections_Database!E54>='Insp&Def Chart Table'!$J$2,Inspections_Database!D54=\"Paris MOU\"),Inspections_Database!F54,0)","v":0},{"$f":"IF(AND(Inspections_Database!E54>='Insp&Def Chart Table'!$J$2,Inspections_Database!D54=\"Paris MOU\"),Inspections_Database!G54,0)","v":0},{"$f":"IF(AND(Inspections_Database!E54>='Insp&Def Chart Table'!$J$2,Inspections_Database!D54=\"Tokyo MOU\"),Inspections_Database!F54,0)","v":0},{"$f":"IF(AND(Inspections_Database!E54>='Insp&Def Chart Table'!$J$2,Inspections_Database!D54=\"Tokyo MOU\"),Inspections_Database!G54,0)","v":0}]
[null,null,{"$f":"IF(AND(Inspections_Database!E55>='Insp&Def Chart Table'!$J$2,Inspections_Database!D55=\"Paris MOU\"),Inspections_Database!F55,0)","v":0},{"$f":"IF(AND(Inspections_Database!E55>='Insp&Def Chart Table'!$J$2,Inspections_Database!D55=\"Paris MOU\"),Inspections_Database!G55,0)","v":0},{"$f":"IF(AND(Inspections_Database!E55>='Insp&Def Chart Table'!$J$2,Inspections_Database!D55=\"Tokyo MOU\"),Inspections_Database!F55,0)","v":0},{"$f":"IF(AND(Inspections_Database!E55>='Insp&Def Chart Table'!$J$2,Inspections_Database!D55=\"Tokyo MOU\"),Inspections_Database!G55,0)","v":0}]
[null,null,{"$f":"IF(AND(Inspections_Database!E56>='Insp&Def Chart Table'!$J$2,Inspections_Database!D56=\"Paris MOU\"),Inspections_Database!F56,0)","v":0},{"$f":"IF(AND(Inspections_Database!E56>='Insp&Def Chart Table'!$J$2,Inspections_Database!D56=\"Paris MOU\"),Inspections_Database!G56,0)","v":0},{"$f":"IF(AND(Inspections_Database!E56>='Insp&Def Chart Table'!$J$2,Inspections_Database!D56=\"Tokyo MOU\"),Inspections_Database!F56,0)","v":0},{"$f":"IF(AND(Inspections_Database!E56>='Insp&Def Chart Table'!$J$2,Inspections_Database!D56=\"Tokyo MOU\"),Inspections_Database!G56,0)","v":0}]
[null,null,{"$f":"IF(AND(Inspections_Database!E57>='Insp&Def Chart Table'!$J$2,Inspections_Database!D57=\"Paris MOU\"),Inspections_Database!F57,0)","v":0},{"$f":"IF(AND(Inspections_Database!E57>='Insp&Def Chart Table'!$J$2,Inspections_Database!D57=\"Paris MOU\"),Inspections_Database!G57,0)","v":0},{"$f":"IF(AND(Inspections_Database!E57>='Insp&Def Chart Table'!$J$2,Inspections_Database!D57=\"Tokyo MOU\"),Inspections_Database!F57,0)","v":0},{"$f":"IF(AND(Inspections_Database!E57>='Insp&Def Chart Table'!$J$2,Inspections_Database!D57=\"Tokyo MOU\"),Inspections_Database!G57,0)","v":0}]
[null,null,{"$f":"IF(AND(Inspections_Database!E58>='Insp&Def Chart Table'!$J$2,Inspections_Database!D58=\"Paris MOU\"),Inspections_Database!F58,0)","v":0},{"$f":"IF(AND(Inspections_Database!E58>='Insp&Def Chart Table'!$J$2,Inspections_Database!D58=\"Paris MOU\"),Inspections_Database!G58,0)","v":0},{"$f":"IF(AND(Inspections_Database!E58>='Insp&Def Chart Table'!$J$2,Inspections_Database!D58=\"Tokyo MOU\"),Inspections_Database!F58,0)","v":0},{"$f":"IF(AND(Inspections_Database!E58>='Insp&Def Chart Table'!$J$2,Inspections_Database!D58=\"Tokyo MOU\"),Inspections_Database!G58,0)","v":0}]
[null,null,{"$f":"IF(AND(Inspections_Database!E59>='Insp&Def Chart Table'!$J$2,Inspections_Database!D59=\"Paris MOU\"),Inspections_Database!F59,0)","v":0},{"$f":"IF(AND(Inspections_Database!E59>='Insp&Def Chart Table'!$J$2,Inspections_Database!D59=\"Paris MOU\"),Inspections_Database!G59,0)","v":0},{"$f":"IF(AND(Inspections_Database!E59>='Insp&Def Chart Table'!$J$2,Inspections_Database!D59=\"Tokyo MOU\"),Inspections_Database!F59,0)","v":0},{"$f":"IF(AND(Inspections_Database!E59>='Insp&Def Chart Table'!$J$2,Inspections_Database!D59=\"Tokyo MOU\"),Inspections_Database!G59,0)","v":0}]
[null,null,{"$f":"IF(AND(Inspections_Database!E60>='Insp&Def Chart Table'!$J$2,Inspections_Database!D60=\"Paris MOU\"),Inspections_Database!F60,0)","v":0},{"$f":"IF(AND(Inspections_Database!E60>='Insp&Def Chart Table'!$J$2,Inspections_Database!D60=\"Paris MOU\"),Inspections_Database!G60,0)","v":0},{"$f":"IF(AND(Inspections_Database!E60>='Insp&Def Chart Table'!$J$2,Inspections_Database!D60=\"Tokyo MOU\"),Inspections_Database!F60,0)","v":0},{"$f":"IF(AND(Inspections_Database!E60>='Insp&Def Chart Table'!$J$2,Inspections_Database!D60=\"Tokyo MOU\"),Inspections_Database!G60,0)","v":0}]
[null,null,{"$f":"IF(AND(Inspections_Database!E61>='Insp&Def Chart Table'!$J$2,Inspections_Database!D61=\"Paris MOU\"),Inspections_Database!F61,0)","v":0},{"$f":"IF(AND(Inspections_Database!E61>='Insp&Def Chart Table'!$J$2,Inspections_Database!D61=\"Paris MOU\"),Inspections_Database!G61,0)","v":0},{"$f":"IF(AND(Inspections_Database!E61>='Insp&Def Chart Table'!$J$2,Inspections_Database!D61=\"Tokyo MOU\"),Inspections_Database!F61,0)","v":0},{"$f":"IF(AND(Inspections_Database!E61>='Insp&Def Chart Table'!$J$2,Inspections_Database!D61=\"Tokyo MOU\"),Inspections_Database!G61,0)","v":0}]
[null,null,{"$f":"IF(AND(Inspections_Database!E62>='Insp&Def Chart Table'!$J$2,Inspections_Database!D62=\"Paris MOU\"),Inspections_Database!F62,0)","v":0},{"$f":"IF(AND(Inspections_Database!E62>='Insp&Def Chart Table'!$J$2,Inspections_Database!D62=\"Paris MOU\"),Inspections_Database!G62,0)","v":0},{"$f":"IF(AND(Inspections_Database!E62>='Insp&Def Chart Table'!$J$2,Inspections_Database!D62=\"Tokyo MOU\"),Inspections_Database!F62,0)","v":0},{"$f":"IF(AND(Inspections_Database!E62>='Insp&Def Chart Table'!$J$2,Inspections_Database!D62=\"Tokyo MOU\"),Inspections_Database!G62,0)","v":0}]
[null,null,{"$f":"IF(AND(Inspections_Database!E63>='Insp&Def Chart Table'!$J$2,Inspections_Database!D63=\"Paris MOU\"),Inspections_Database!F63,0)","v":0},{"$f":"IF(AND(Inspections_Database!E63>='Insp&Def Chart Table'!$J$2,Inspections_Database!D63=\"Paris MOU\"),Inspections_Database!G63,0)","v":0},{"$f":"IF(AND(Inspections_Database!E63>='Insp&Def Chart Table'!$J$2,Inspections_Database!D63=\"Tokyo MOU\"),Inspections_Database!F63,0)","v":0},{"$f":"IF(AND(Inspections_Database!E63>='Insp&Def Chart Table'!$J$2,Inspections_Database!D63=\"Tokyo MOU\"),Inspections_Database!G63,0)","v":0}]
[null,null,{"$f":"IF(AND(Inspections_Database!E64>='Insp&Def Chart Table'!$J$2,Inspections_Database!D64=\"Paris MOU\"),Inspections_Database!F64,0)","v":0},{"$f":"IF(AND(Inspections_Database!E64>='Insp&Def Chart Table'!$J$2,Inspections_Database!D64=\"Paris MOU\"),Inspections_Database!G64,0)","v":0},{"$f":"IF(AND(Inspections_Database!E64>='Insp&Def Chart Table'!$J$2,Inspections_Database!D64=\"Tokyo MOU\"),Inspections_Database!F64,0)","v":0},{"$f":"IF(AND(Inspections_Database!E64>='Insp&Def Chart Table'!$J$2,Inspections_Database!D64=\"Tokyo MOU\"),Inspections_Database!G64,0)","v":0}]

{"sheet":"Insp&Def Chart Table","index":6,"n_rows":12,"n_cols":21,"rows_kept":12,"hidden":true}
[null,null,"Ship Name","Paris - Inspections","Paris - Detentions","Tokyo - Inspections","Tokyo - Detentions",{"$nulls":8},"Paris - Non ISM Def","Paris - ISM Def","Tokyo - Non ISM Def","Tokyo - ISM Def"]
[{"$nulls":3},{"$f":"COUNTIFS(Inspections_Database!$E$2:$E$5000,\">\"&$J$2,Inspections_Database!$E$2:$E$5000,\"<\"&$K$2,Inspections_Database!$D$2:$D$5000,\"Paris MOU\",Inspections_Database!$A$2:$A$5000,Fleet_List!A2)","v":0},{"$f":"COUNTIFS(Inspections_Database!$E$2:$E$5000,\">\"&$J$2,Inspections_Database!$E$2:$E$5000,\"<\"&$K$2,Inspections_Database!$A$2:$A$5000,Fleet_List!$A$2:$A$300,Inspections_Database!$H$2:$H$5000,\"Yes\",Inspections_Database!$D$2:$D$5000,\"Paris MOU\")","v":0},{"$f":"COUNTIFS(Inspections_Database!$E$2:$E$5000,\">\"&$J$2,Inspections_Database!$E$2:$E$5000,\"<\"&$K$2,Inspections_Database!$D$2:$D$5000,\"Tokyo MOU\",Inspections_Database!$A$2:$A$5000,Fleet_List!A2)","v":0},{"$f":"COUNTIFS(Inspections_Database!$E$2:$E$5000,\">\"&$J$2,Inspections_Database!$E$2:$E$5000,\"<\"&$K$2,Inspections_Database!$A$2:$A$5000,Fleet_List!$A$2:$A$300,Inspections_Database!$H$2:$H$5000,\"Yes\",Inspections_Database!$D$2:$D$5000,\"Tokyo MOU\")","v":0},{"$f":"COUNTIFS(Inspections_Database!E2:E14,\">\"&J2,Inspections_Database!E2:E14,\"<\"&K2,Inspections_Database!A2:A14,Fleet_List!A2)","v":0},null,"2014-09-24","2017-09-26",{"$nulls":4},{"$f":"SUMIF(Data_Validation!$B$2:$B$7000,Fleet_List!$A$2:$A$257,Data_Validation!$C$2:$C$7000)","v":0},{"$f":"SUMIF(Data_Validation!$B$2:$B$7000,Fleet_List!$A$2:$A$257,Data_Validation!$D$2:$D$7000)","v":0},{"$f":"SUMIF(Data_Validation!$B$2:$B$7000,Fleet_List!$A$2:$A$257,Data_Validation!$E$2:$E$7000)","v":0},{"$f":"SUMIF(Data_Validation!$B$2:$B$7000,Fleet_List!$A$2:$A$257,Data_Validation!$F$2:$F$7000)","v":0},{"$f":"SUMIF(Data_Validation!$B$2:$B$7000,Fleet_List!$A$2:$A$250,Data_Validation!$E$2:$E$7000)","v":0},{"$f":"SUMIF(Data_Validation!$B$2:$B$7000,Fleet_List!$A$2:$A$250,Data_Validation!$F$2:$F$7000)","v":0}]
[{"$nulls":3},{"$f":"COUNTIFS(Inspections_Database!$E$2:$E$5000,\">\"&$J$2,Inspections_Database!$E$2:$E$5000,\"<\"&$K$2,Inspections_Database!$D$2:$D$5000,\"Paris MOU\",Inspections_Database!$A$2:$A$5000,Fleet_List!A3)","v":0},{"$f":"COUNTIFS(Inspections_Database!$E$2:$E$5000,\">\"&$J$2,Inspections_Database!$E$2:$E$5000,\"<\"&$K$2,Inspections_Database!$A$2:$A$5000,Fleet_List!$A$2:$A$300,Inspections_Database!$H$2:$H$5000,\"Yes\",Inspections_Database!$D$2:$D$5000,\"Paris MOU\")","v":0},{"$f":"COUNTIFS(Inspections_Database!$E$2:$E$5000,\">\"&$J$2,Inspections_Database!$E$2:$E$5000,\"<\"&$K$2,Inspections_Database!$D$2:$D$5000,\"Tokyo MOU\",Inspections_Database!$A$2:$A$5000,Fleet_List!A3)","v":0},{"$f":"COUNTIFS(Inspections_Database!$E$2:$E$5000,\">\"&$J$2,Inspections_Database!$E$2:$E$5000,\"<\"&$K$2,Inspections_Database!$A$2:$A$5000,Fleet_List!$A$2:$A$300,Inspections_Database!$H$2:$H$5000,\"Yes\",Inspections_Database!$D$2:$D$5000,\"Tokyo MOU\")","v":0},{"$f":"COUNTIFS(Inspections_Database!$E$2:$E$2982,\">\"&$J$2,Inspections_Database!$E$2:$E$2982,\"<\"&$K$2,Inspections_Database!$A$2:$A$2982,Fleet_List!$A$2:$A$291,Inspections_Database!$H$2:$H$2982,\"Yes\")","v":0},{"$nulls":7},{"$f":"SUMIF(Data_Validation!$B$2:$B$7000,Fleet_List!$A$2:$A$257,Data_Validation!$C$2:$C$7000)","v":0},{"$f":"SUMIF(Data_Validation!$B$2:$B$7000,Fleet_List!$A$2:$A$257,Data_Validation!$D$2:$D$7000)","v":0},{"$f":"SUMIF(Data_Validation!$B$2:$B$7000,Fleet_List!$A$2:$A$257,Data_Validation!$E$2:$E$7000)","v":0},{"$f":"SUMIF(Data_Validation!$B$2:$B$7000,Fleet_List!$A$2:$A$257,Data_Validation!$F$2:$F$7000)","v":0},{"$f":"SUMIF(Data_Validation!$B$2:$B$7000,Fleet_List!$A$2:$A$250,Data_Validation!$E$2:$E$7000)","v":0},{"$f":"SUMIF(Data_Validation!$B$2:$B$7000,Fleet_List!$A$2:$A$250,Data_Validation!$F$2:$F$7000)","v":0}]
[{"$nulls":3},{"$f":"COUNTIFS(Inspections_Database!$E$2:$E$5000,\">\"&$J$2,Inspections_Database!$E$2:$E$5000,\"<\"&$K$2,Inspections_Database!$D$2:$D$5000,\"Paris MOU\",Inspections_Database!$A$2:$A$5000,Fleet_List!A4)","v":0},{"$f":"COUNTIFS(Inspections_Database!$E$2:$E$5000,\">\"&$J$2,Inspections_Database!$E$2:$E$5000,\"<\"&$K$2,Inspections_Database!$A$2:$A$5000,Fleet_List!$A$2:$A$300,Inspections_Database!$H$2:$H$5000,\"Yes\",Inspections_Database!$D$2:$D$5000,\"Paris MOU\")","v":0},{"$f":"COUNTIFS(Inspections_Database!$E$2:$E$5000,\">\"&$J$2,Inspections_Database!$E$2:$E$5000,\"<\"&$K$2,Inspections_Database!$D$2:$D$5000,\"Tokyo MOU\",Inspections_Database!$A$2:$A$5000,Fleet_List!A4)","v":0},{"$f":"COUNTIFS(Inspections_Database!$E$2:$E$5000,\">\"&$J$2,Inspections_Database!$E$2:$E$5000,\"<\"&$K$2,Inspections_Database!$A$2:$A$5000,Fleet_List!$A$2:$A$300,Inspections_Database!$H$2:$H$5000,\"Yes\",Inspections_Database!$D$2:$D$5000,\"Tokyo MOU\")","v":0},{"$nulls":8},{"$f":"SUMIF(Data_Validation!$B$2:$B$7000,Fleet_List!$A$2:$A$257,Data_Validation!$C$2:$C$7000)","v":0},{"$f":"SUMIF(Data_Validation!$B$2:$B$7000,Fleet_List!$A$2:$A$257,Data_Validation!$D$2:$D$7000)","v":0},{"$f":"SUMIF(Data_Validation!$B$2:$B$7000,Fleet_List!$A$2:$A$257,Data_Validation!$E$2:$E$7000)","v":0},{"$f":"SUMIF(Data_Validation!$B$2:$B$7000,Fleet_List!$A$2:$A$257,Data_Validation!$F$2:$F$7000)","v":0},{"$f":"SUMIF(Data_Validation!$B$2:$B$7000,Fleet_List!$A$2:$A$250,Data_Validation!$E$2:$E$7000)","v":0},{"$f":"SUMIF(Data_Validation!$B$2:$B$7000,Fleet_List!$A$2:$A$250,Data_Validation!$F$2:$F$7000)","v":0}]
[{"$nulls":3},{"$f":"COUNTIFS(Inspections_Database!$E$2:$E$5000,\">\"&$J$2,Inspections_Database!$E$2:$E$5000,\"<\"&$K$2,Inspections_Database!$D$2:$D$5000,\"Paris MOU\",Inspections_Database!$A$2:$A$5000,Fleet_List!A5)","v":0},{"$f":"COUNTIFS(Inspections_Database!$E$2:$E$5000,\">\"&$J$2,Inspections_Database!$E$2:$E$5000,\"<\"&$K$2,Inspections_Database!$A$2:$A$5000,Fleet_List!$A$2:$A$300,Inspections_Database!$H$2:$H$5000,\"Yes\",Inspections_Database!$D$2:$D$5000,\"Paris MOU\")","v":0},{"$f":"COUNTIFS(Inspections_Database!$E$2:$E$5000,\">\"&$J$2,Inspections_Database!$E$2:$E$5000,\"<\"&$K$2,Inspections_Database!$D$2:$D$5000,\"Tokyo MOU\",Inspections_Database!$A$2:$A$5000,Fleet_List!A5)","v":0},{"$f":"COUNTIFS(Inspections_Database!$E$2:$E$5000,\">\"&$J$2,Inspections_Database!$E$2:$E$5000,\"<\"&$K$2,Inspections_Database!$A$2:$A$5000,Fleet_List!$A$2:$A$300,Inspections_Database!$H$2:$H$5000,\"Yes\",Inspections_Database!$D$2:$D$5000,\"Tokyo MOU\")","v":0},{"$nulls":8},{"$f":"SUMIF(Data_Validation!$B$2:$B$7000,Fleet_List!$A$2:$A$257,Data_Validation!$C$2:$C$7000)","v":0},{"$f":"SUMIF(Data_Validation!$B$2:$B$7000,Fleet_List!$A$2:$A$257,Data_Validation!$D$2:$D$7000)","v":0},{"$f":"SUMIF(Data_Validation!$B$2:$B$7000,Fleet_List!$A$2:$A$257,Data_Validation!$E$2:$E$7000)","v":0},{"$f":"SUMIF(Data_Validation!$B$2:$B$7000,Fleet_List!$A$2:$A$257,Data_Validation!$F$2:$F$7000)","v":0},{"$f":"SUMIF(Data_Validation!$B$2:$B$7000,Fleet_List!$A$2:$A$250,Data_Validation!$E$2:$E$7000)","v":0},{"$f":"SUMIF(Data_Validation!$B$2:$B$7000,Fleet_List!$A$2:$A$250,Data_Validation!$F$2:$F$7000)","v":0}]
[{"$nulls":3},{"$f":"COUNTIFS(Inspections_Database!$E$2:$E$5000,\">\"&$J$2,Inspections_Database!$E$2:$E$5000,\"<\"&$K$2,Inspections_Database!$D$2:$D$5000,\"Paris MOU\",Inspections_Database!$A$2:$A$5000,Fleet_List!#REF!)","v":0},{"$f":"COUNTIFS(Inspections_Database!$E$2:$E$5000,\">\"&$J$2,Inspections_Database!$E$2:$E$5000,\"<\"&$K$2,Inspections_Database!$A$2:$A$5000,Fleet_List!$A$2:$A$296,Inspections_Database!$H$2:$H$5000,\"Yes\",Inspections_Database!$D$2:$D$5000,\"Paris MOU\")","v":0},{"$f":"COUNTIFS(Inspections_Database!$E$2:$E$5000,\">\"&$J$2,Inspections_Database!$E$2:$E$5000,\"<\"&$K$2,Inspections_Database!$D$2:$D$5000,\"Tokyo MOU\",Inspections_Database!$A$2:$A$5000,Fleet_List!#REF!)","v":0},{"$f":"COUNTIFS(Inspections_Database!$E$2:$E$5000,\">\"&$J$2,Inspections_Database!$E$2:$E$5000,\"<\"&$K$2,Inspections_Database!$A$2:$A$5000,Fleet_List!$A$2:$A$296,Inspections_Database!$H$2:$H$5000,\"Yes\",Inspections_Database!$D$2:$D$5000,\"Tokyo MOU\")","v":0},{"$nulls":8},{"$f":"SUMIF(Data_Validation!$B$2:$B$7000,Fleet_List!$A$2:$A$253,Data_Validation!$C$2:$C$7000)","v":0},{"$f":"SUMIF(Data_Validation!$B$2:$B$7000,Fleet_List!$A$2:$A$253,Data_Validation!$D$2:$D$7000)","v":0},{"$f":"SUMIF(Data_Validation!$B$2:$B$7000,Fleet_List!$A$2:$A$253,Data_Validation!$E$2:$E$7000)","v":0},{"$f":"SUMIF(Data_Validation!$B$2:$B$7000,Fleet_List!$A$2:$A$253,Data_Validation!$F$2:$F$7000)","v":0},{"$f":"SUMIF(Data_Validation!$B$2:$B$7000,Fleet_List!$A$2:$A$250,Data_Validation!$E$2:$E$7000)","v":0},{"$f":"SUMIF(Data_Validation!$B$2:$B$7000,Fleet_List!$A$2:$A$250,Data_Validation!$F$2:$F$7000)","v":0}]
[{"$nulls":3},{"$f":"COUNTIFS(Inspections_Database!$E$2:$E$5000,\">\"&$J$2,Inspections_Database!$E$2:$E$5000,\"<\"&$K$2,Inspections_Database!$D$2:$D$5000,\"Paris MOU\",Inspections_Database!$A$2:$A$5000,Fleet_List!A3)","v":0},{"$f":"COUNTIFS(Inspections_Database!$E$2:$E$5000,\">\"&$J$2,Inspections_Database!$E$2:$E$5000,\"<\"&$K$2,Inspections_Database!$A$2:$A$5000,Fleet_List!$A$2:$A$296,Inspections_Database!$H$2:$H$5000,\"Yes\",Inspections_Database!$D$2:$D$5000,\"Paris MOU\")","v":0},{"$f":"COUNTIFS(Inspections_Database!$E$2:$E$5000,\">\"&$J$2,Inspections_Database!$E$2:$E$5000,\"<\"&$K$2,Inspections_Database!$D$2:$D$5000,\"Tokyo MOU\",Inspections_Database!$A$2:$A$5000,Fleet_List!A3)","v":0},{"$f":"COUNTIFS(Inspections_Database!$E$2:$E$5000,\">\"&$J$2,Inspections_Database!$E$2:$E$5000,\"<\"&$K$2,Inspections_Database!$A$2:$A$5000,Fleet_List!$A$2:$A$296,Inspections_Database!$H$2:$H$5000,\"Yes\",Inspections_Database!$D$2:$D$5000,\"Tokyo MOU\")","v":0},{"$nulls":8},{"$f":"SUMIF(Data_Validation!$B$2:$B$7000,Fleet_List!$A$2:$A$253,Data_Validation!$C$2:$C$7000)","v":0},{"$f":"SUMIF(Data_Validation!$B$2:$B$7000,Fleet_List!$A$2:$A$253,Data_Validation!$D$2:$D$7000)","v":0},{"$f":"SUMIF(Data_Validation!$B$2:$B$7000,Fleet_List!$A$2:$A$253,Data_Validation!$E$2:$E$7000)","v":0},{"$f":"SUMIF(Data_Validation!$B$2:$B$7000,Fleet_List!$A$2:$A$253,Data_Validation!$F$2:$F$7000)","v":0},{"$f":"SUMIF(Data_Validation!$B$2:$B$7000,Fleet_List!$A$2:$A$250,Data_Validation!$E$2:$E$7000)","v":0},{"$f":"SUMIF(Data_Validation!$B$2:$B$7000,Fleet_List!$A$2:$A$250,Data_Validation!$F$2:$F$7000)","v":0}]
[{"$nulls":3},{"$f":"COUNTIFS(Inspections_Database!$E$2:$E$5000,\">\"&$J$2,Inspections_Database!$E$2:$E$5000,\"<\"&$K$2,Inspections_Database!$D$2:$D$5000,\"Paris MOU\",Inspections_Database!$A$2:$A$5000,Fleet_List!A4)","v":0},{"$f":"COUNTIFS(Inspections_Database!$E$2:$E$5000,\">\"&$J$2,Inspections_Database!$E$2:$E$5000,\"<\"&$K$2,Inspections_Database!$A$2:$A$5000,Fleet_List!$A$2:$A$296,Inspections_Database!$H$2:$H$5000,\"Yes\",Inspections_Database!$D$2:$D$5000,\"Paris MOU\")","v":0},{"$f":"COUNTIFS(Inspections_Database!$E$2:$E$5000,\">\"&$J$2,Inspections_Database!$E$2:$E$5000,\"<\"&$K$2,Inspections_Database!$D$2:$D$5000,\"Tokyo MOU\",Inspections_Database!$A$2:$A$5000,Fleet_List!A4)","v":0},{"$f":"COUNTIFS(Inspections_Database!$E$2:$E$5000,\">\"&$J$2,Inspections_Database!$E$2:$E$5000,\"<\"&$K$2,Inspections_Database!$A$2:$A$5000,Fleet_List!$A$2:$A$296,Inspections_Database!$H$2:$H$5000,\"Yes\",Inspections_Database!$D$2:$D$5000,\"Tokyo MOU\")","v":0},{"$nulls":8},{"$f":"SUMIF(Data_Validation!$B$2:$B$7000,Fleet_List!$A$2:$A$253,Data_Validation!$C$2:$C$7000)","v":0},{"$f":"SUMIF(Data_Validation!$B$2:$B$7000,Fleet_List!$A$2:$A$253,Data_Validation!$D$2:$D$7000)","v":0},{"$f":"SUMIF(Data_Validation!$B$2:$B$7000,Fleet_List!$A$2:$A$253,Data_Validation!$E$2:$E$7000)","v":0},{"$f":"SUMIF(Data_Validation!$B$2:$B$7000,Fleet_List!$A$2:$A$253,Data_Validation!$F$2:$F$7000)","v":0}]
[{"$nulls":3},{"$f":"COUNTIFS(Inspections_Database!$E$2:$E$5000,\">\"&$J$2,Inspections_Database!$E$2:$E$5000,\"<\"&$K$2,Inspections_Database!$D$2:$D$5000,\"Paris MOU\",Inspections_Database!$A$2:$A$5000,Fleet_List!A5)","v":0},{"$f":"COUNTIFS(Inspections_Database!$E$2:$E$5000,\">\"&$J$2,Inspections_Database!$E$2:$E$5000,\"<\"&$K$2,Inspections_Database!$A$2:$A$5000,Fleet_List!$A$2:$A$296,Inspections_Database!$H$2:$H$5000,\"Yes\",Inspections_Database!$D$2:$D$5000,\"Paris MOU\")","v":0},{"$f":"COUNTIFS(Inspections_Database!$E$2:$E$5000,\">\"&$J$2,Inspections_Database!$E$2:$E$5000,\"<\"&$K$2,Inspections_Database!$D$2:$D$5000,\"Tokyo MOU\",Inspections_Database!$A$2:$A$5000,Fleet_List!A5)","v":0},{"$f":"COUNTIFS(Inspections_Database!$E$2:$E$5000,\">\"&$J$2,Inspections_Database!$E$2:$E$5000,\"<\"&$K$2,Inspections_Database!$A$2:$A$5000,Fleet_List!$A$2:$A$296,Inspections_Database!$H$2:$H$5000,\"Yes\",Inspections_Database!$D$2:$D$5000,\"Tokyo MOU\")","v":0},{"$nulls":8},{"$f":"SUMIF(Data_Validation!$B$2:$B$7000,Fleet_List!$A$2:$A$253,Data_Validation!$C$2:$C$7000)","v":0},{"$f":"SUMIF(Data_Validation!$B$2:$B$7000,Fleet_List!$A$2:$A$253,Data_Validation!$D$2:$D$7000)","v":0},{"$f":"SUMIF(Data_Validation!$B$2:$B$7000,Fleet_List!$A$2:$A$253,Data_Validation!$E$2:$E$7000)","v":0},{"$f":"SUMIF(Data_Validation!$B$2:$B$7000,Fleet_List!$A$2:$A$253,Data_Validation!$F$2:$F$7000)","v":0}]
[{"$nulls":3},{"$f":"COUNTIFS(Inspections_Database!$E$2:$E$5000,\">\"&$J$2,Inspections_Database!$E$2:$E$5000,\"<\"&$K$2,Inspections_Database!$D$2:$D$5000,\"Paris MOU\",Inspections_Database!$A$2:$A$5000,Fleet_List!#REF!)","v":0},{"$f":"COUNTIFS(Inspections_Database!$E$2:$E$5000,\">\"&$J$2,Inspections_Database!$E$2:$E$5000,\"<\"&$K$2,Inspections_Database!$A$2:$A$5000,Fleet_List!$A$2:$A$293,Inspections_Database!$H$2:$H$5000,\"Yes\",Inspections_Database!$D$2:$D$5000,\"Paris MOU\")","v":0},{"$f":"COUNTIFS(Inspections_Database!$E$2:$E$5000,\">\"&$J$2,Inspections_Database!$E$2:$E$5000,\"<\"&$K$2,Inspections_Database!$D$2:$D$5000,\"Tokyo MOU\",Inspections_Database!$A$2:$A$5000,Fleet_List!#REF!)","v":0},{"$f":"COUNTIFS(Inspections_Database!$E$2:$E$5000,\">\"&$J$2,Inspections_Database!$E$2:$E$5000,\"<\"&$K$2,Inspections_Database!$A$2:$A$5000,Fleet_List!$A$2:$A$293,Inspections_Database!$H$2:$H$5000,\"Yes\",Inspections_Database!$D$2:$D$5000,\"Tokyo MOU\")","v":0},{"$nulls":8},{"$f":"SUMIF(Data_Validation!$B$2:$B$7000,Fleet_List!$A$2:$A$250,Data_Validation!$C$2:$C$7000)","v":0},{"$f":"SUMIF(Data_Validation!$B$2:$B$7000,Fleet_List!$A$2:$A$250,Data_Validation!$D$2:$D$7000)","v":0},{"$f":"SUMIF(Data_Validation!$B$2:$B$7000,Fleet_List!$A$2:$A$250,Data_Validation!$E$2:$E$7000)","v":0},{"$f":"SUMIF(Data_Validation!$B$2:$B$7000,Fleet_List!$A$2:$A$250,Data_Validation!$F$2:$F$7000)","v":0}]
[{"$nulls":3},{"$f":"COUNTIFS(Inspections_Database!$E$2:$E$5000,\">\"&$J$2,Inspections_Database!$E$2:$E$5000,\"<\"&$K$2,Inspections_Database!$D$2:$D$5000,\"Paris MOU\",Inspections_Database!$A$2:$A$5000,Fleet_List!A5)","v":0},{"$f":"COUNTIFS(Inspections_Database!$E$2:$E$5000,\">\"&$J$2,Inspections_Database!$E$2:$E$5000,\"<\"&$K$2,Inspections_Database!$A$2:$A$5000,Fleet_List!$A$2:$A$293,Inspections_Database!$H$2:$H$5000,\"Yes\",Inspections_Database!$D$2:$D$5000,\"Paris MOU\")","v":0},{"$f":"COUNTIFS(Inspections_Database!$E$2:$E$5000,\">\"&$J$2,Inspections_Database!$E$2:$E$5000,\"<\"&$K$2,Inspections_Database!$D$2:$D$5000,\"Tokyo MOU\",Inspections_Database!$A$2:$A$5000,Fleet_List!A5)","v":0},{"$f":"COUNTIFS(Inspections_Database!$E$2:$E$5000,\">\"&$J$2,Inspections_Database!$E$2:$E$5000,\"<\"&$K$2,Inspections_Database!$A$2:$A$5000,Fleet_List!$A$2:$A$293,Inspections_Database!$H$2:$H$5000,\"Yes\",Inspections_Database!$D$2:$D$5000,\"Tokyo MOU\")","v":0},{"$nulls":8},{"$f":"SUMIF(Data_Validation!$B$2:$B$7000,Fleet_List!$A$2:$A$250,Data_Validation!$C$2:$C$7000)","v":0},{"$f":"SUMIF(Data_Validation!$B$2:$B$7000,Fleet_List!$A$2:$A$250,Data_Validation!$D$2:$D$7000)","v":0},{"$f":"SUMIF(Data_Validation!$B$2:$B$7000,Fleet_List!$A$2:$A$250,Data_Validation!$E$2:$E$7000)","v":0},{"$f":"SUMIF(Data_Validation!$B$2:$B$7000,Fleet_List!$A$2:$A$250,Data_Validation!$F$2:$F$7000)","v":0}]
[{"$nulls":3},{"$f":"COUNTIFS(Inspections_Database!$E$2:$E$5000,\">\"&$J$2,Inspections_Database!$E$2:$E$5000,\"<\"&$K$2,Inspections_Database!$D$2:$D$5000,\"Paris MOU\",Inspections_Database!$A$2:$A$5000,Fleet_List!#REF!)","v":0},{"$f":"COUNTIFS(Inspections_Database!$E$2:$E$5000,\">\"&$J$2,Inspections_Database!$E$2:$E$5000,\"<\"&$K$2,Inspections_Database!$A$2:$A$5000,Fleet_List!$A$2:$A$293,Inspections_Database!$H$2:$H$5000,\"Yes\",Inspections_Database!$D$2:$D$5000,\"Paris MOU\")","v":0},{"$f":"COUNTIFS(Inspections_Database!$E$2:$E$5000,\">\"&$J$2,Inspections_Database!$E$2:$E$5000,\"<\"&$K$2,Inspections_Database!$D$2:$D$5000,\"Tokyo MOU\",Inspections_Database!$A$2:$A$5000,Fleet_List!#REF!)","v":0},{"$f":"COUNTIFS(Inspections_Database!$E$2:$E$5000,\">\"&$J$2,Inspections_Database!$E$2:$E$5000,\"<\"&$K$2,Inspections_Database!$A$2:$A$5000,Fleet_List!$A$2:$A$293,Inspections_Database!$H$2:$H$5000,\"Yes\",Inspections_Database!$D$2:$D$5000,\"Tokyo MOU\")","v":0},{"$nulls":8},{"$f":"SUMIF(Data_Validation!$B$2:$B$7000,Fleet_List!$A$2:$A$250,Data_Validation!$C$2:$C$7000)","v":0},{"$f":"SUMIF(Data_Validation!$B$2:$B$7000,Fleet_List!$A$2:$A$250,Data_Validation!$D$2:$D$7000)","v":0},{"$f":"SUMIF(Data_Validation!$B$2:$B$7000,Fleet_List!$A$2:$A$250,Data_Validation!$E$2:$E$7000)","v":0},{"$f":"SUMIF(Data_Validation!$B$2:$B$7000,Fleet_List!$A$2:$A$250,Data_Validation!$F$2:$F$7000)","v":0}]

{"sheet":"ChartTable","index":11,"n_rows":37,"n_cols":7,"rows_kept":37,"hidden":true}
["Month","Paris Detention Ratio","Paris Deficiency Ratio",null,"Month","Tokyo Detention Ratio","Tokyo Deficiency Ratio"]
["2014-08-01",{"v":0,"d":"0.0"},{"v":0,"d":"0.00"},null,"2014-08-01",{"v":0,"d":"0.0"},{"v":0,"d":"0.00"}]
["2014-09-01",{"v":0,"d":"0.0"},{"v":0,"d":"0.00"},null,"2014-09-01",{"v":0,"d":"0.0"},{"v":0,"d":"0.00"}]
["2014-10-01",{"v":0,"d":"0.0"},{"v":0,"d":"0.00"},null,"2014-10-01",{"v":0,"d":"0.0"},{"v":0,"d":"0.00"}]
["2014-11-01",{"v":0,"d":"0.0"},{"v":0,"d":"0.00"},null,"2014-11-01",{"v":0,"d":"0.0"},{"v":0,"d":"0.00"}]
["2014-12-01",{"v":0,"d":"0.0"},{"v":0,"d":"0.00"},null,"2014-12-01",{"v":0,"d":"0.0"},{"v":0,"d":"0.00"}]
["2015-01-01",{"v":0,"d":"0.0"},{"v":0,"d":"0.00"},null,"2015-01-01",{"v":0,"d":"0.0"},{"v":0,"d":"0.00"}]
["2015-02-01",{"v":0,"d":"0.0"},{"v":0,"d":"0.00"},null,"2015-02-01",{"v":0,"d":"0.0"},{"v":0,"d":"0.00"}]
["2015-03-01",{"v":0,"d":"0.0"},{"v":0,"d":"0.00"},null,"2015-03-01",{"v":0,"d":"0.0"},{"v":0,"d":"0.00"}]
["2015-04-01",{"v":0,"d":"0.0"},{"v":0,"d":"0.00"},null,"2015-04-01",{"v":0,"d":"0.0"},{"v":0,"d":"0.00"}]
["2015-05-01",{"v":0,"d":"0.0"},{"v":0,"d":"0.00"},null,"2015-05-01",{"v":0,"d":"0.0"},{"v":0,"d":"0.00"}]
["2015-06-01",{"v":0,"d":"0.0"},{"v":0,"d":"0.00"},null,"2015-06-01",{"v":0,"d":"0.0"},{"v":0,"d":"0.00"}]
["2015-07-01",{"v":0,"d":"0.0"},{"v":0,"d":"0.00"},null,"2015-07-01",{"v":0,"d":"0.0"},{"v":0,"d":"0.00"}]
["2015-08-01",{"v":0,"d":"0.0"},{"v":0,"d":"0.00"},null,"2015-08-01",{"v":0,"d":"0.0"},{"v":0,"d":"0.00"}]
["2015-09-01",{"v":0,"d":"0.0"},{"v":0,"d":"0.00"},null,"2015-09-01",{"v":0,"d":"0.0"},{"v":0,"d":"0.00"}]
["2015-10-01",{"v":0,"d":"0.0"},{"v":0,"d":"0.00"},null,"2015-10-01",{"v":0,"d":"0.0"},{"v":0,"d":"0.00"}]
["2015-11-01",{"v":0,"d":"0.0"},{"v":0,"d":"0.00"},null,"2015-11-01",{"v":0,"d":"0.0"},{"v":0,"d":"0.00"}]
["2015-12-01",{"v":0,"d":"0.0"},{"v":0,"d":"0.00"},null,"2015-12-01",{"v":0,"d":"0.0"},{"v":0,"d":"0.00"}]
["2016-01-01",{"v":0,"d":"0.0"},{"v":0,"d":"0.00"},null,"2016-01-01",{"v":0,"d":"0.0"},{"v":0,"d":"0.00"}]
["2016-02-01",{"v":0,"d":"0.0"},{"v":0,"d":"0.00"},null,"2016-02-01",{"v":0,"d":"0.0"},{"v":0,"d":"0.00"}]
["2016-03-01",{"v":0,"d":"0.0"},{"v":0,"d":"0.00"},null,"2016-03-01",{"v":0,"d":"0.0"},{"v":0,"d":"0.00"}]
["2016-04-01",{"v":0,"d":"0.0"},{"v":0,"d":"0.00"},null,"2016-04-01",{"v":0,"d":"0.0"},{"v":0,"d":"0.00"}]
["2016-05-01",{"v":0,"d":"0.0"},{"v":0,"d":"0.00"},null,"2016-05-01",{"v":0,"d":"0.0"},{"v":0,"d":"0.00"}]
["2016-06-01",{"v":0,"d":"0.0"},{"v":0,"d":"0.00"},null,"2016-06-01",{"v":0,"d":"0.0"},{"v":0,"d":"0.00"}]
["2016-07-01",{"v":0,"d":"0.0"},{"v":0,"d":"0.00"},null,"2016-07-01",{"v":0,"d":"0.0"},{"v":0,"d":"0.00"}]
["2016-08-01",{"v":0,"d":"0.0"},{"v":0,"d":"0.00"},null,"2016-08-01",{"v":0,"d":"0.0"},{"v":0,"d":"0.00"}]
["2016-09-01",{"v":0,"d":"0.0"},{"v":0,"d":"0.00"},null,"2016-09-01",{"v":0,"d":"0.0"},{"v":0,"d":"0.00"}]
["2016-10-01",{"v":0,"d":"0.0"},{"v":0,"d":"0.00"},null,"2016-10-01",{"v":0,"d":"0.0"},{"v":0,"d":"0.00"}]
["2016-11-01",{"v":0,"d":"0.0"},{"v":0,"d":"0.00"},null,"2016-11-01",{"v":0,"d":"0.0"},{"v":0,"d":"0.00"}]
["2016-12-01",{"v":0,"d":"0.0"},{"v":0,"d":"0.00"},null,"2016-12-01",{"v":0,"d":"0.0"},{"v":0,"d":"0.00"}]
["2017-01-01",{"v":0,"d":"0.0"},{"v":0,"d":"0.00"},null,"2017-01-01",{"v":0,"d":"0.0"},{"v":0,"d":"0.00"}]
["2017-02-01",{"v":0,"d":"0.0"},{"v":0,"d":"0.00"},null,"2017-02-01",{"v":0,"d":"0.0"},{"v":0,"d":"0.00"}]
["2017-03-01",{"v":0,"d":"0.0"},{"v":0,"d":"0.00"},null,"2017-03-01",{"v":0,"d":"0.0"},{"v":0,"d":"0.00"}]
["2017-04-01",{"v":0,"d":"0.0"},{"v":0,"d":"0.00"},null,"2017-04-01",{"v":0,"d":"0.0"},{"v":0,"d":"0.00"}]
["2017-05-01",{"v":0,"d":"0.0"},{"v":0,"d":"0.00"},null,"2017-05-01",{"v":0,"d":"0.0"},{"v":0,"d":"0.00"}]
["2017-06-01",{"v":0,"d":"0.0"},{"v":0,"d":"0.00"},null,"2017-06-01",{"v":0,"d":"0.0"},{"v":0,"d":"0.00"}]
["2017-07-01",{"v":0,"d":"0.0"},{"v":0,"d":"0.00"},null,"2017-07-01",{"v":0,"d":"0.0"},{"v":0,"d":"0.00"}]